bitfinex-derivatives/quotes_SOLF0:USTF0_20250309
["timestamp","ask_amount","ask_price","bid_price","bid_amount"]
[1741546819045,3.0745,127.63,127.55,31.81213203]
[1741546819240,4.9300196,127.62,127.58,31.81213203]
[1741546819547,153.59978464,127.67,127.58,31.81213203]
[1741546819548,85.49477581,127.67,127.58,74.83213203]
[1741546819740,42.92271614,127.63,127.58,74.83213203]
[1741546819942,42.92271614,127.63,127.58,43.02]
[1741546820138,1.581e-05,127.62,127.6,31.81213203]
[1741546820337,38.45799162,127.64,127.61,31.81213203]
[1741546820644,197.25391172,127.66,127.62,74.83213203]
[1741546820834,63.44097813,127.66,127.65,31.81213203]
[1741546821039,63.44097813,127.66,127.63,31.81213203]
[1741546821241,26.99097813,127.66,127.63,31.81213203]
[1741546821436,262.20873144,127.67,127.63,35.78700808]
[1741546821636,262.20873144,127.67,127.66,31.81213203]
[1741546821845,262.20873144,127.67,127.63,0.05487605]
[1741546822636,3.0877,127.68,127.63,0.05487605]
[1741546822838,0.05050435,127.66,127.63,0.05487605]
[1741546823042,47.92376636,127.65,127.59,42.95877181]
[1741546823242,43.0,127.65,127.59,42.95877181]
[1741546823442,7.02127465,127.64,127.59,42.95877181]
[1741546823743,7.837,127.61,127.59,42.95877181]
[1741546823944,2.0961,127.64,127.59,42.95877181]
[1741546824148,4.92541433,127.63,127.59,42.95877181]
[1741546824449,0.05151911,127.61,127.59,0.05454163]
[1741546826244,0.05151911,127.61,127.6,7.8376]
[1741546826649,0.05151911,127.61,127.59,31.86667366]
[1741546826845,0.05151911,127.61,127.59,0.05454163]
[1741546827447,0.05151911,127.61,127.6,7.8376]
[1741546827849,0.05151911,127.61,127.59,0.05454163]
[1741546828553,1.911e-05,127.61,127.6,7.8376]
[1741546828743,2.1939,127.71,127.6,74.79213203]
[1741546828938,4.92262495,127.7,127.63,31.81213203]
[1741546829143,2.1939,127.71,127.63,31.81213203]
[1741546829843,0.04946592,127.68,127.66,0.05778301]
[1741546830046,42.98,127.77,127.66,31.86991504]
[1741546830243,7.83,127.73,127.68,7.8322]
[1741546830451,31.81213203,127.76,127.66,31.81213203]
[1741546830650,4.91521878,127.74,127.66,31.81213203]
[1741546830850,31.81213203,127.76,127.66,31.81213203]
[1741546831043,31.81213203,127.76,127.69,0.05501055]
[1741546831349,6.5741,127.78,127.71,7.8306]
[1741546831350,0.05258682,127.72,127.71,7.8306]
[1741546831547,6.5741,127.78,127.71,31.81213203]
[1741546831745,4.3888,127.78,127.71,31.81213203]
[1741546831950,4.3888,127.78,127.68,74.77213203]
[1741546832451,42.96,127.81,127.72,31.81213203]
[1741546832756,2.1853,127.82,127.75,31.87164386]
[1741546832757,0.0589107,127.78,127.75,31.87164386]
[1741546832941,1.07e-05,127.78,127.77,7.8271]
[1741546833147,1.07e-05,127.78,127.77,39.63923203]
[1741546833647,1.07e-05,127.78,127.77,7.8271]
[1741546834055,1.07e-05,127.78,127.75,0.05951183]
[1741546834848,1.07e-05,127.78,127.71,42.95877181]
[1741546835155,42.94,127.77,127.71,42.95877181]
[1741546835349,45.016,127.77,127.71,42.95877181]
[1741546835543,2.1915,127.76,127.71,42.95877181]
[1741546835748,2.1915,127.76,127.72,42.95877181]
[1741546835954,45.016,127.77,127.72,42.95877181]
[1741546835955,2.076,127.77,127.72,42.95877181]
[1741546836146,0.0600612,127.75,127.73,0.05690883]
[1741546836449,0.0400612,127.75,127.73,0.05690883]
[1741546836658,4.2675,127.82,127.73,51.67149802]
[1741546836956,4.2675,127.82,127.73,51.61458919]
[1741546837351,4.2675,127.82,127.74,7.8288]
[1741546837545,4.2675,127.82,127.73,51.61458919]
[1741546837746,0.05884049,127.79,127.78,7.8263]
[1741546837954,2.1137,127.85,127.78,42.94]
[1741546838153,4.2675,127.89,127.79,51.61458919]
[1741546838358,6.3812,127.89,127.82,7.824]
[1741546838753,6.3812,127.89,127.84,7.8228]
[1741546838954,51.61458919,127.95,127.82,94.53458919]
[1741546839156,0.05693942,127.88,127.85,51.66977468]
[1741546839356,0.05693942,127.88,127.86,42.92]
[1741546839556,6.3419,127.95,127.86,42.92]
[1741546839751,0.05322809,127.88,127.86,42.97033279]
[1741546840054,6.3419,127.95,127.86,42.92]
[1741546840259,0.05273073,127.88,127.86,42.97089345]
[1741546840460,14.1581,127.95,127.86,50.7415]
[1741546840649,0.05279331,127.88,127.86,50.79901406]
[1741546840855,6.3419,127.95,127.86,42.92]
[1741546841055,0.05433002,127.88,127.86,42.973101]
[1741546841357,42.9,127.92,127.82,42.9]
[1741546841656,42.9,127.92,127.8,309.93458919]
[1741546841657,0.05351279,127.88,127.8,309.93458919]
[1741546841865,42.9,127.87,127.79,42.9]
[1741546842159,6.3967,127.86,127.79,42.9]
[1741546842562,6.3967,127.86,127.83,42.95877181]
[1741546842957,192.0,127.91,127.83,42.95877181]
[1741546843265,6.3212,127.93,127.85,51.61458919]
[1741546843468,6.3212,127.93,127.86,0.05641592]
[1741546843852,7.8185,127.92,127.86,0.05641592]
[1741546844261,6.3212,127.93,127.86,0.05641592]
[1741546844461,0.05040122,127.9,127.88,51.61458919]
[1741546844656,6.5687,128.0,127.88,51.61458919]
[1741546845059,7.815,127.97,127.89,7.8194]
[1741546845261,51.61458919,127.99,127.88,51.61458919]
[1741546845568,51.61458919,127.95,127.85,42.86]
[1741546845761,0.04965323,127.95,127.85,42.86]
[1741546845955,42.86,127.96,127.85,42.86]
[1741546846160,7.8195,127.9,127.89,0.05480922]
[1741546846359,94.47458919,127.92,127.88,42.95877181]
[1741546846561,7.8198,127.89,127.88,36.10257181]
[1741546846757,7.8198,127.89,127.88,29.24617181]
[1741546847462,7.821,127.87,127.83,86.21072863]
[1741546847664,94.47458919,127.91,127.87,0.05158507]
[1741546847856,42.86,127.91,127.83,86.21072863]
[1741546848060,42.86,127.91,127.83,140.00251782]
[1741546848265,51.61458919,127.94,127.84,42.86]
[1741546848266,94.47458919,127.94,127.84,42.86]
[1741546848456,94.47458919,127.94,127.85,7.8218]
[1741546848661,51.61458919,127.92,127.84,42.86]
[1741546848861,0.04989262,127.91,127.88,0.05307876]
[1741546851965,9.94289262,127.91,127.88,0.05307876]
[1741546852174,2.12409262,127.91,127.88,0.05307876]
[1741546852469,7.8198,127.89,127.88,0.05307876]
[1741546852876,2.12409262,127.91,127.88,0.05307876]
[1741546853070,9.94289262,127.91,127.88,0.05307876]
[1741546853272,2.12409262,127.91,127.88,0.05307876]
[1741546853573,7.8198,127.89,127.88,0.05307876]
[1741546854269,2.12409262,127.91,127.88,0.05307876]
[1741546854869,94.43458919,127.9,127.82,42.84]
[1741546855074,42.82,127.9,127.82,42.84]
[1741546855974,42.82,127.9,127.82,94.45458919]
[1741546856166,199.8184,127.92,127.86,51.61458919]
[1741546856167,0.05512847,127.87,127.86,51.61458919]
[1741546856672,51.61458919,128.0,127.86,98.35458919]
[1741546856866,42.82,127.99,127.9,51.61458919]
[1741546857060,0.05649449,127.94,127.92,51.61458919]
[1741546857265,0.05649449,127.94,127.93,0.05921069]
[1741546857469,239.0594,128.02,127.93,0.05921069]
[1741546857661,0.05336945,127.95,127.93,0.05921069]
[1741546857870,0.05336945,127.95,127.92,51.61458919]
[1741546858071,239.0594,128.02,127.93,0.05482153]
[1741546858265,0.05864109,127.95,127.93,7.87172153]
[1741546858471,239.0594,128.02,127.92,51.61458919]
[1741546858673,12.0513,128.02,127.96,7.8153]
[1741546859170,0.05808494,127.98,127.96,7.8153]
[1741546859369,0.05808494,127.98,127.94,94.41458919]
[1741546859370,0.05808494,127.98,127.97,7.8149]
[1741546859671,8.494e-05,127.98,127.97,7.8149]
[1741546859869,8.494e-05,127.98,127.97,42.8]
[1741546860464,8.494e-05,127.98,127.97,50.6149]
[1741546860670,8.494e-05,127.98,127.97,54.5149]
[1741546860876,2.1333,128.06,127.97,46.7]
[1741546861071,2.1333,128.06,127.99,51.61458919]
[1741546861275,192.0,128.11,128.01,51.61458919]
[1741546861471,7.8074,128.1,128.02,50.5914]
[1741546861776,194.1333,128.11,128.02,50.5914]
[1741546861969,194.1333,128.11,128.02,42.78]
[1741546862170,0.05578917,128.07,128.05,0.05931638]
[1741546862371,94.39458919,128.06,127.93,58.16368919]
[1741546862574,7.8129,128.01,127.93,65.98058919]
[1741546862774,42.78,128.0,127.92,258.06]
[1741546863171,2.1498,128.02,127.92,258.06]
[1741546863373,42.76,128.01,127.92,258.06]
[1741546863578,42.76,128.01,127.89,42.78]
[1741546863579,0.05301084,127.98,127.96,0.05507202]
[1741546863881,42.76,127.97,127.89,51.61458919]
[1741546864179,7.8165,127.95,127.87,100.84578919]
[1741546864572,42.76,127.97,127.87,100.84578919]
[1741546864972,0.05841902,127.93,127.91,0.05758755]
[1741546865169,42.81841902,127.93,127.91,0.05758755]
[1741546866090,0.05841902,127.93,127.91,0.05758755]
[1741546866582,42.81841902,127.93,127.91,0.05758755]
[1741546866776,0.05841902,127.93,127.91,0.05758755]
[1741546869179,7.818,127.92,127.91,0.05758755]
[1741546869375,0.05841902,127.93,127.91,0.05758755]
[1741546869976,0.05841902,127.93,127.91,7.87578755]
[1741546870274,0.05841902,127.93,127.91,0.05758755]
[1741546871379,0.05841902,127.93,127.92,7.818]
[1741546871580,1547.56,128.14,127.92,51.61458919]
[1741546871581,192.0,128.03,127.92,51.61458919]
[1741546871882,7.8137,127.99,127.95,7.816]
[1741546872082,7.8137,127.99,127.93,42.74]
[1741546872582,7.8127,128.01,127.93,42.74]
[1741546872780,0.00098144,127.97,127.95,0.05039899]
[1741546872979,44.7409,128.06,128.0,7.8129]
[1741546873178,44.7409,128.06,127.96,53.71028919]
[1741546873375,4.85595203,128.05,127.97,42.74]
[1741546873574,44.7409,128.06,127.99,51.61458919]
[1741546873775,42.74,128.06,127.99,51.61458919]
[1741546874284,0.05708343,128.04,128.01,0.05962178]
[1741546874677,0.05708343,128.04,128.03,7.8112]
[1741546875077,0.05708343,128.04,128.02,51.61458919]
[1741546875277,0.05708343,128.04,128.01,42.79962178]
[1741546876884,0.05708343,128.04,128.01,0.05962178]
[1741546877482,0.05708343,128.04,128.03,7.8112]
[1741546877784,0.05708343,128.04,128.01,0.05962178]
[1741546877985,42.72,128.1,128.03,7.8112]
[1741546878188,4.85968095,128.09,128.03,7.8112]
[1741546878379,42.72,128.1,128.0,6.18385858]
[1741546878579,56.47314699,128.09,128.0,6.18385858]
[1741546878890,7.8104,128.05,128.0,6.18385858]
[1741546879286,51.61458919,128.09,128.0,6.18385858]
[1741546879287,51.61458919,128.09,128.01,0.05130121]
[1741546879481,4.85861443,128.08,128.0,13.99675858]
[1741546879681,51.61458919,128.09,128.04,0.05990694]
[1741546879877,51.61458919,128.07,127.98,31.4723193]
[1741546880081,42.72,128.1,127.98,83.08690849]
[1741546880277,42.72,128.1,128.0,51.61458919]
[1741546880278,4.86084985,128.09,128.0,51.61458919]
[1741546880483,4.86084985,128.08,127.98,83.08690849]
[1741546880682,4.86084985,128.07,128.01,7.8123]
[1741546880879,47.56084985,128.06,127.98,83.08690849]
[1741546881083,0.05559511,128.05,128.03,0.05826307]
[1741546881889,0.05559511,128.05,128.04,7.8106]
[1741546882482,0.05559511,128.05,128.03,0.05826307]
[1741546883089,0.05559511,128.05,128.04,7.8106]
[1741546883291,0.05559511,128.05,128.03,0.05826307]
[1741546883491,0.05559511,128.05,128.04,7.8106]
[1741546883793,7.8072,128.1,128.03,51.67285226]
[1741546883984,6.2515,128.12,128.03,51.61458919]
[1741546884188,7.8071,128.1,128.03,51.61458919]
[1741546884393,48.9315,128.12,128.03,51.61458919]
[1741546884594,4.86569168,128.11,128.03,51.61458919]
[1741546884787,48.9315,128.12,128.06,0.05558674]
[1741546884988,4.86569778,128.11,128.06,0.05558674]
[1741546885192,243.61458919,128.22,128.07,51.61458919]
[1741546885390,53.69981728,128.21,128.1,51.61458919]
[1741546885583,4.86301728,128.2,128.1,51.61458919]
[1741546885785,4.86301728,128.19,128.15,7.8035]
[1741546886091,6.1768,128.21,128.13,51.61458919]
[1741546886393,6.1768,128.21,128.16,7.86028602]
[1741546886596,309.37458919,128.26,128.16,0.05708602]
[1741546886892,7.7942,128.32,128.23,51.61458919]
[1741546887085,6.0242,128.37,128.26,51.61458919]
[1741546887289,42.64,128.36,128.26,51.61458919]
[1741546887484,50.4318,128.36,128.3,0.05547009]
[1741546887690,42.64,128.36,128.3,0.05547009]
[1741546887985,7.7938,128.32,128.3,0.05547009]
[1741546888294,94.25458919,128.32,128.23,42.64]
[1741546888488,94.30416783,128.32,128.22,257.66]
[1741546888689,7.7961,128.28,128.22,257.66]
[1741546888889,94.25458919,128.32,128.22,257.66]
[1741546889091,7.796,128.29,128.23,7.799]
[1741546889291,2.0342,128.3,128.22,257.66]
[1741546889486,0.04928711,128.27,128.25,0.05414276]
[1741546889686,0.04928711,128.27,128.25,7.85184276]
[1741546889890,0.04928711,128.27,128.25,0.05414276]
[1741546890689,7.84648711,128.27,128.25,0.05414276]
[1741546890991,0.04928711,128.27,128.25,0.05414276]
[1741546891192,0.04928711,128.27,128.25,7.85194276]
[1741546891396,0.04928711,128.27,128.25,0.05414276]
[1741546892098,2.1091,128.36,128.26,51.61458919]
[1741546892293,44.7291,128.36,128.28,51.61458919]
[1741546892893,44.7291,128.36,128.26,2.0677]
[1741546893293,52.5208,128.36,128.29,7.7952]
[1741546893501,44.7291,128.36,128.3,0.05058996]
[1741546894098,51.61458919,128.35,128.3,0.05058996]
[1741546894294,240.6291,128.36,128.24,257.56]
[1741546894600,51.61458919,128.33,128.21,7.8001]
[1741546894801,42.6,128.32,128.2,51.61458919]
[1741546895196,51.61458919,128.3,128.19,46.6581]
[1741546895390,4.1083,128.29,128.19,4.0581]
[1741546895597,0.0562128,128.26,128.23,0.05497961]
[1741546896001,7.7985,128.24,128.23,0.05497961]
[1741546896393,0.0562128,128.26,128.23,0.05497961]
[1741546896592,7.8539128,128.26,128.23,0.05497961]
[1741546896797,0.0562128,128.26,128.23,0.05497961]
[1741546897601,0.0562128,128.26,128.24,7.7985]
[1741546897796,0.0562128,128.26,128.23,0.05497961]
[1741546898500,42.58,128.25,128.23,0.05497961]
[1741546898705,7.7985,128.24,128.23,0.05497961]
[1741546899101,0.0562128,128.26,128.23,0.05497961]
[1741546899302,0.0562128,128.26,128.25,7.7978]
[1741546900707,0.0562128,128.26,128.24,50.3782]
[1741546901111,0.0562128,128.26,128.24,42.58]
[1741546901311,0.0562128,128.26,128.23,0.05497961]
[1741546902013,0.0562128,128.26,128.24,94.17458919]
[1741546902906,0.0562128,128.26,128.24,51.61458919]
[1741546903303,53.71718919,128.33,128.24,51.61458919]
[1741546903304,2.1026,128.33,128.25,42.56]
[1741546903505,4.0012,128.34,128.27,51.61458919]
[1741546903708,4.0012,128.34,128.29,7.795]
[1741546904012,4.0012,128.34,128.25,94.17458919]
[1741546904813,4.0012,128.34,128.28,0.05751915]
[1741546905012,42.56,128.33,128.28,0.05751915]
[1741546905405,7.7939,128.32,128.28,0.05751915]
[1741546905605,42.56,128.33,128.28,0.05751915]
[1741546906009,7.7945,128.31,128.28,0.05751915]
[1741546906314,42.56,128.33,128.28,0.05751915]
[1741546907012,7.7953,128.3,128.28,0.05751915]
[1741546907211,42.56,128.33,128.28,0.05751915]
[1741546908105,192.0,128.32,128.21,1.9721]
[1741546908306,51.61458919,128.3,128.19,44.4793]
[1741546908515,51.61458919,128.3,128.19,96.09388919]
[1741546908516,42.54,128.29,128.19,96.09388919]
[1741546908806,7.7964,128.28,128.24,7.7984]
[1741546909114,42.54,128.29,128.19,96.09388919]
[1741546909414,0.05997388,128.27,128.25,0.05028087]
[1741546910214,0.05997388,128.27,128.26,7.7972]
[1741546910516,0.05997388,128.27,128.25,0.05028087]
[1741546912913,7.85697388,128.27,128.25,0.05028087]
[1741546913409,0.05997388,128.27,128.25,0.05028087]
[1741546914216,0.05997388,128.27,128.26,7.7972]
[1741546914718,0.05997388,128.27,128.25,0.05028087]
[1741546916120,0.05997388,128.27,128.25,7.84758087]
[1741546916320,0.05997388,128.27,128.25,0.05028087]
[1741546916924,0.05997388,128.27,128.26,7.7972]
[1741546917523,0.05997388,128.27,128.25,0.05028087]
[1741546917917,7.85707388,128.27,128.25,0.05028087]
[1741546918318,0.05997388,128.27,128.25,0.05028087]
[1741546918520,7.7972,128.26,128.25,0.05028087]
[1741546918923,0.05997388,128.27,128.25,0.05028087]
[1741546919120,7.85697388,128.27,128.25,0.05028087]
[1741546919822,7.7972,128.26,128.25,0.05028087]
[1741546920223,0.05997388,128.27,128.25,0.05028087]
[1741546920426,7.85687388,128.27,128.25,0.05028087]
[1741546920925,51.61458919,128.26,128.2,10.29132226]
[1741546921133,51.61458919,128.23,128.19,28.2470193]
[1741546921425,51.61458919,128.23,128.18,86.21072863]
[1741546921426,51.61458919,128.21,128.18,25.64717019]
[1741546921729,51.61458919,128.19,128.17,223.18485365]
[1741546921926,47.34338724,128.18,128.17,180.91155365]
[1741546922122,47.34338724,128.18,128.17,142.01538786]
[1741546922324,500.52338724,128.18,128.07,4.068]
[1741546922626,51.61458919,128.14,128.03,42.5]
[1741546922828,7.8074,128.1,128.03,44.628]
[1741546923024,94.09458919,128.16,128.05,51.61458919]
[1741546923229,4.85091804,128.15,128.06,2.0516]
[1741546923434,0.05969479,128.12,128.09,0.0589848]
[1741546923845,50.3023,128.18,128.09,42.5589848]
[1741546924039,4.85184096,128.17,128.1,53.59518919]
[1741546924344,42.5,128.18,128.1,53.59518919]
[1741546924533,4.85600099,128.17,128.1,1.9806]
[1741546924734,42.5,128.18,128.1,1.9806]
[1741546924932,42.5,128.21,128.13,51.61458919]
[1741546925135,51.61458919,128.26,128.19,7.8015]
[1741546925342,4.8593509,128.25,128.17,42.5]
[1741546925536,252.47736027,128.18,128.17,42.5]
[1741546925737,233.12646027,128.18,128.17,50.3027]
[1741546925938,223.45116027,128.18,128.17,50.3027]
[1741546926440,223.45116027,128.18,128.11,51.61458919]
[1741546926635,275.06574946,128.18,128.16,0.05433533]
[1741546926842,6.8909152,128.17,128.06,42.5]
[1741546927034,47.3678152,128.16,128.06,42.5]
[1741546927234,4.8678152,128.15,128.06,1.24]
[1741546927439,4.8678152,128.15,128.09,51.61458919]
[1741546927635,2.0231,128.17,128.09,51.61458919]
[1741546927836,4.87142536,128.16,128.08,7.8082]
[1741546928036,0.05653671,128.14,128.12,0.05581304]
[1741546928240,7.8051,128.13,128.12,0.05581304]
[1741546928442,0.05653671,128.14,128.12,0.05581304]
[1741546928740,0.05653671,128.14,128.04,51.61458919]
[1741546928741,4.87526004,128.13,128.04,42.48]
[1741546928940,4.87526004,128.12,128.02,311.12848919]
[1741546929139,47.36106313,128.11,128.02,311.12848919]
[1741546929340,42.48,128.11,128.02,311.12848919]
[1741546929939,0.05868528,128.08,128.05,0.05816873]
[1741546931140,0.05868528,128.08,128.06,7.8093]
[1741546931340,0.05868528,128.08,128.05,0.05816873]
[1741546931644,47.37415454,128.07,127.93,1.9467]
[1741546931833,4.8743836,128.06,127.96,51.61458919]
[1741546932033,42.5,128.07,127.99,51.61458919]
[1741546932634,42.5,128.07,127.96,51.61458919]
[1741546932839,0.05133068,128.04,128.02,0.05850932]
[1741546933942,7.8112,128.03,128.02,0.05850932]
[1741546934139,50.3112,128.03,128.02,0.05850932]
[1741546935948,94.11458919,128.03,127.93,9.7638]
[1741546936137,94.11458919,128.03,127.93,1.9467]
[1741546936342,94.11458919,128.03,127.97,7.8149]
[1741546936343,7.8121,128.02,127.97,7.8149]
[1741546936734,42.5,128.03,127.94,51.61458919]
[1741546936940,7.8141,127.99,127.94,7.8167]
[1741546937141,0.06005621,128.0,127.97,0.05860011]
[1741546937342,42.5,128.03,127.97,0.05860011]
[1741546937543,0.05559262,128.0,127.97,0.05860011]
[1741546938245,0.05559262,128.0,127.97,51.6731893]
[1741546938441,0.05559262,128.0,127.97,7.87310011]
[1741546938748,0.05559262,128.0,127.97,0.05860011]
[1741546939153,0.05559262,128.0,127.99,7.8137]
[1741546939349,1.9961,128.08,127.99,51.61458919]
[1741546939550,2.086,128.11,128.02,51.61458919]
[1741546939944,2.086,128.11,128.0,4.0833]
[1741546940140,42.5,128.1,128.0,4.0833]
[1741546940548,9.194e-05,128.06,128.05,51.61458919]
[1741546940845,86.08927561,128.14,128.05,94.11458919]
[1741546941644,0.05612092,128.1,128.08,0.05907647]
[1741546943354,0.05612092,128.1,128.0,4.0833]
[1741546943651,1.9846,128.1,128.0,4.0833]
[1741546944052,1.9846,128.1,128.02,7.8115]
[1741546944053,51.61458919,128.09,128.02,7.8115]
[1741546944252,51.61458919,128.07,127.96,42.5]
[1741546944447,42.5,128.06,127.96,42.5]
[1741546944647,0.04999656,128.03,128.0,0.05857221]
[1741546946251,0.04999656,128.03,128.02,7.8119]
[1741546947254,0.04999656,128.03,128.01,7.8124]
[1741546947557,0.04999656,128.03,128.0,0.05857221]
[1741546949755,9.656e-05,128.03,128.02,7.8119]
[1741546950753,2.0862,128.12,128.11,7.8064]
[1741546951050,160.85275396,128.14,128.05,42.48]
[1741546951451,160.85275396,128.14,128.08,7.8078]
[1741546951755,51.61458919,128.1,128.0,51.61458919]
[1741546952050,44.6005,128.09,127.98,55.61828919]
[1741546952253,2.1205,128.09,128.04,0.0510495]
[1741546952456,9.593e-05,128.05,128.04,7.8616495]
[1741546952655,44.6005,128.14,128.04,0.0510495]
[1741546952954,7.806,128.12,128.06,7.809]
[1741546953155,44.6005,128.14,128.03,51.61458919]
[1741546953357,96.21508919,128.14,128.03,51.61458919]
[1741546953553,0.0504099,128.1,128.03,51.61458919]
[1741546953755,42.5304099,128.1,128.07,0.05908729]
[1741546954354,0.0504099,128.1,128.07,0.05908729]
[1741546954753,0.0504099,128.1,128.09,7.8076]
[1741546956759,0.0504099,128.1,128.07,0.05908729]
[1741546957566,7.8082,128.08,128.07,0.05908729]
[1741546957757,51.61458919,128.09,127.99,6.1207]
[1741546958064,53.67148919,128.07,127.97,42.46]
[1741546958263,53.67148919,128.07,128.0,7.8125]
[1741546958563,2.0569,128.07,127.97,42.46]
[1741546958765,2.0569,128.07,128.0,7.8131]
[1741546958963,0.04987816,128.03,128.01,0.05294973]
[1741546959464,7.86147816,128.03,128.01,0.05294973]
[1741546959861,7.8119,128.02,128.01,0.05294973]
[1741546960161,0.04987816,128.03,127.95,257.68]
[1741546960366,7.8132,128.0,127.96,7.8154]
[1741546960669,94.07458919,128.04,127.93,6.1677]
[1741546960864,4.86302106,128.03,127.92,94.07458919]
[1741546961168,0.05462426,127.99,127.97,0.05210006]
[1741546962364,0.05462426,127.99,127.98,7.8143]
[1741546962573,2.426e-05,127.99,127.98,7.8143]
[1741546962775,2.426e-05,127.99,127.98,59.42888919]
[1741546963071,2.426e-05,127.99,127.98,7.8143]
[1741546963775,321.13391342,128.12,128.06,7.8093]
[1741546964071,74.20837561,128.04,128.03,42.46]
[1741546964370,74.20837561,128.04,128.01,42.46]
[1741546964573,74.20837561,128.04,128.03,7.8112]
[1741546965872,74.20837561,128.04,128.02,7.87177137]
[1741546966370,74.20837561,128.04,128.02,0.05997137]
[1741546966774,34.33437561,128.04,128.02,94.11456056]
[1741546966973,35.14393708,128.05,128.02,94.11456056]
[1741546967170,10.79798485,128.11,128.04,51.61458919]
[1741546967366,10.79798485,128.11,128.07,51.61458919]
[1741546967577,10.79798485,128.11,128.1,7.807]
[1741546967879,10.79798485,128.11,128.07,94.05458919]
[1741546968471,0.05006486,128.1,128.08,0.05772251]
[1741546968672,0.05006486,128.1,128.09,7.8076]
[1741546968975,0.05006486,128.1,128.08,0.05772251]
[1741546969275,0.05006486,128.1,128.08,7.86572251]
[1741546969777,0.05006486,128.1,128.08,0.05772251]
[1741546970280,0.05006486,128.1,128.09,7.8076]
[1741546971376,6.486e-05,128.1,128.09,7.8076]
[1741546972971,6.486e-05,128.1,128.08,0.05772251]
[1741546973773,2.08476486,128.1,128.08,0.05772251]
[1741546973969,4.83034604,128.09,128.08,0.05772251]
[1741546974175,4.83034604,128.09,128.0,300.06]
[1741546974375,44.48476486,128.1,128.0,300.06]
[1741546974376,6.77884604,128.08,128.0,300.06]
[1741546974679,4.83158237,128.07,128.02,7.8118]
[1741546974881,1.9485,128.08,128.0,257.66]
[1741546975271,0.05019731,128.05,128.03,0.0493254]
[1741546975771,7.86049731,128.05,128.03,0.0493254]
[1741546976175,0.05019731,128.05,127.96,51.61458919]
[1741546976371,94.01458919,128.06,127.94,309.25458919]
[1741546976572,51.61458919,128.04,127.94,300.04]
[1741546976878,7.8135,128.0,127.95,7.816]
[1741546977073,51.61458919,128.04,127.94,300.04]
[1741546977269,2.0256,128.02,127.92,134.79328936]
[1741546977470,7.87108942,128.0,127.98,0.06001534]
[1741546977671,7.87108942,128.0,127.94,7.8161]
[1741546978376,0.05788942,128.0,127.95,7.8161]
[1741546978774,0.05788942,128.0,127.96,0.05954681]
[1741546982073,0.05788942,128.0,127.97,7.8149]
[1741546982269,0.05788942,128.0,127.96,0.05954681]
[1741546982679,0.05788942,128.0,127.97,7.8148]
[1741546983076,0.05788942,128.0,127.96,0.05954681]
[1741546983670,42.45788942,128.0,127.96,0.05954681]
[1741546985278,42.45788942,128.0,127.97,7.8146]
[1741546985478,0.05788942,128.0,127.97,7.8146]
[1741546985672,0.05788942,128.0,127.96,0.05954681]
[1741546986476,0.05788942,128.0,127.96,7.87474681]
[1741546986881,0.05788942,128.0,127.96,0.05954681]
[1741546987478,0.05788942,128.0,127.97,7.8148]
[1741546987884,0.05788942,128.0,127.96,0.05954681]
[1741546988578,7.8137,127.99,127.96,0.05954681]
[1741546988784,53.62778919,127.99,127.87,51.61458919]
[1741546988985,51.61458919,127.97,127.85,51.61458919]
[1741546989283,7.8169,127.94,127.9,7.819]
[1741546989680,7.8174,127.93,127.9,7.819]
[1741546989882,0.05855735,127.93,127.91,0.05415889]
[1741546990083,2.0483,127.92,127.87,7.821]
[1741546990387,7.8187,127.91,127.87,7.821]
[1741546990591,2.0483,127.92,127.88,7.8203]
[1741546990782,2.0483,127.92,127.84,42.38]
[1741546991181,0.05144732,127.89,127.87,0.05902287]
[1741546992390,0.05144732,127.89,127.88,7.8204]
[1741546992585,0.05144732,127.89,127.87,0.05902287]
[1741546993391,0.05144732,127.89,127.88,7.8204]
[1741546994187,4.732e-05,127.89,127.88,7.8204]
[1741546994391,2.0926,127.97,127.88,97.89458919]
[1741546994592,2.0926,127.97,127.9,51.61458919]
[1741546994801,53.70718919,127.97,127.86,51.61458919]
[1741546995005,4.81046981,127.96,127.89,7.8198]
[1741546995206,53.70718919,127.97,127.86,51.61458919]
[1741546995509,4.80892979,127.96,127.86,51.61458919]
[1741546995703,0.05584327,127.93,127.9,0.05478967]
[1741546995900,42.38,127.92,127.84,50.2026]
[1741546996109,42.38,127.92,127.84,7.8226]
[1741546996410,42.38,127.92,127.79,42.38]
[1741546996411,51.61458919,127.89,127.79,42.38]